[Event "*** SCC Grand Prix: Titled Tuesday Blitz"]
[Site "Chess.com"]
[Date "2020.10.13"]
[Round "2"]
[White "Titus369"]
[Black "seorobert1971"]
[Result "0-1"]
[WhiteElo "2498"]
[BlackElo "2723"]
[TimeControl "180+1"]
[EndTime "10:17:56 PDT"]
[Termination "seorobert1971 won on time"]

1. e4 {[%clk 0:03:00.9]} 1... c6 {[%clk 0:03:00]} 2. d4 {[%clk 0:03:00.5]} 2...
d5 {[%clk 0:03:00.9]} 3. Nd2 {[%clk 0:03:01]} 3... dxe4 {[%clk 0:03:00.7]} 4.
Nxe4 {[%clk 0:03:01.9]} 4... Nf6 {[%clk 0:03:01.2]} 5. Nxf6+ {[%clk 0:03:01.1]}
5... exf6 {[%clk 0:03:02.1]} 6. c3 {[%clk 0:02:57.4]} 6... Bd6 {[%clk
0:03:01.8]} 7. Bd3 {[%clk 0:02:53.3]} 7... Nd7 {[%clk 0:03:00.2]} 8. Ne2 {[%clk
0:02:52]} 8... Nf8 {[%clk 0:02:59.9]} 9. Qc2 {[%clk 0:02:46.6]} 9... Ng6 {[%clk
0:02:59.5]} 10. Be3 {[%clk 0:02:39.7]} 10... O-O {[%clk 0:02:56.9]} 11. O-O-O
{[%clk 0:02:40.2]} 11... Re8 {[%clk 0:02:56.7]} 12. h4 {[%clk 0:02:39.7]} 12...
Bg4 {[%clk 0:02:52.8]} 13. h5 {[%clk 0:02:37.9]} 13... Nf8 {[%clk 0:02:52.8]}
14. Rde1 {[%clk 0:02:23.1]} 14... Qc7 {[%clk 0:02:43.1]} 15. Qd2 {[%clk
0:02:11.3]} 15... Rad8 {[%clk 0:02:35.5]} 16. f3 {[%clk 0:02:10.2]} 16... Bc8
{[%clk 0:02:34]} 17. g4 {[%clk 0:02:03]} 17... c5 {[%clk 0:02:33.9]} 18. d5
{[%clk 0:01:55.2]} 18... c4 {[%clk 0:02:32.2]} 19. Be4 {[%clk 0:01:55.2]} 19...
Bd7 {[%clk 0:02:18.8]} 20. Reg1 {[%clk 0:01:30.3]} 20... Bc8 {[%clk 0:02:08.5]}
21. Nd4 {[%clk 0:01:23.3]} 21... a6 {[%clk 0:02:06.2]} 22. Rg2 {[%clk
0:01:16.9]} 22... Nd7 {[%clk 0:02:05.7]} 23. Nf5 {[%clk 0:01:15.1]} 23... Nc5
{[%clk 0:02:01.4]} 24. Nxd6 {[%clk 0:01:07.1]} 24... Qxd6 {[%clk 0:02:00.8]} 25.
Bf4 {[%clk 0:01:01.7]} 25... Qd7 {[%clk 0:01:46.4]} 26. Bf5 {[%clk 0:00:55.9]}
26... Qxd5 {[%clk 0:01:40.6]} 27. Qxd5 {[%clk 0:00:45.1]} 27... Rxd5 {[%clk
0:01:41.5]} 28. Bxc8 {[%clk 0:00:44.6]} 28... Nd3+ {[%clk 0:01:34.6]} 29. Kc2
{[%clk 0:00:41.4]} 29... Rxc8 {[%clk 0:01:34.8]} 30. Bd2 {[%clk 0:00:35.2]}
30... Re8 {[%clk 0:01:31.8]} 31. Rhh2 {[%clk 0:00:32.8]} 31... Kf8 {[%clk
0:01:23.3]} 32. Re2 {[%clk 0:00:19.2]} 32... Rde5 {[%clk 0:01:17.7]} 33. Rxe5
{[%clk 0:00:17.5]} 33... Nxe5 {[%clk 0:01:17.5]} 34. Rf2 {[%clk 0:00:16.6]}
34... Ke7 {[%clk 0:01:17]} 35. b3 {[%clk 0:00:14.1]} 35... cxb3+ {[%clk
0:01:14.5]} 36. axb3 {[%clk 0:00:15]} 36... h6 {[%clk 0:01:12.9]} 37. Re2 {[%clk
0:00:14.6]} 37... Kd7 {[%clk 0:01:13]} 38. Rf2 {[%clk 0:00:13.4]} 38... Re6
{[%clk 0:01:12.1]} 39. Bf4 {[%clk 0:00:13.3]} 39... Rd6 {[%clk 0:01:10.6]} 40.
Re2 {[%clk 0:00:11.8]} 40... Rd5 {[%clk 0:01:08.2]} 41. c4 {[%clk 0:00:11.7]}
41... Ra5 {[%clk 0:01:08.1]} 42. Re3 {[%clk 0:00:08.9]} 42... Ra2+ {[%clk
0:00:58.5]} 43. Kb1 {[%clk 0:00:07.4]} 43... Rf2 {[%clk 0:00:56.3]} 44. Bxe5
{[%clk 0:00:07.5]} 44... fxe5 {[%clk 0:00:57.2]} 45. b4 {[%clk 0:00:05.8]} 45...
f6 {[%clk 0:00:54.8]} 46. Rd3+ {[%clk 0:00:05.1]} 46... Ke6 {[%clk 0:00:53]} 47.
b5 {[%clk 0:00:05.6]} 47... axb5 {[%clk 0:00:50]} 48. cxb5 {[%clk 0:00:06.5]}
48... b6 {[%clk 0:00:38.9]} 49. Rc3 {[%clk 0:00:05.8]} 49... Kd5 {[%clk
0:00:32.4]} 50. Kc1 {[%clk 0:00:04.8]} 50... Kd4 {[%clk 0:00:29.5]} 51. Rc6
{[%clk 0:00:04.4]} 51... Rxf3 {[%clk 0:00:29.3]} 52. Rxb6 {[%clk 0:00:04.7]}
52... Rg3 {[%clk 0:00:28.3]} 53. Rb8 {[%clk 0:00:03]} 53... Kc5 {[%clk
0:00:25.3]} 0-1

[Event "*** SCC Grand Prix: Titled Tuesday Blitz"]
[Site "Chess.com"]
[Date "2020.10.13"]
[Round "2"]
[White "Aguiar94"]
[Black "Azerichess"]
[Result "0-1"]
[WhiteElo "2594"]
[BlackElo "2948"]
[TimeControl "180+1"]
[EndTime "10:17:57 PDT"]
[Termination "Azerichess won on time"]

1. e4 {[%clk 0:03:00.9]} 1... c6 {[%clk 0:02:58.3]} 2. d4 {[%clk 0:03:00.5]}
2... d5 {[%clk 0:02:58.9]} 3. e5 {[%clk 0:03:01.1]} 3... Bf5 {[%clk 0:02:58.3]}
4. Nf3 {[%clk 0:03:01.6]} 4... e6 {[%clk 0:02:57.8]} 5. Be2 {[%clk 0:03:02.1]}
5... Ne7 {[%clk 0:02:58]} 6. O-O {[%clk 0:03:02.6]} 6... c5 {[%clk 0:02:58.5]}
7. dxc5 {[%clk 0:03:01.9]} 7... Nec6 {[%clk 0:02:58.1]} 8. a3 {[%clk 0:03:02]}
8... Bxc5 {[%clk 0:02:50.2]} 9. b4 {[%clk 0:03:01.9]} 9... Bb6 {[%clk
0:02:50.6]} 10. Bb2 {[%clk 0:03:02]} 10... O-O {[%clk 0:02:50.7]} 11. Nbd2
{[%clk 0:03:01.9]} 11... Nd7 {[%clk 0:02:47.6]} 12. Re1 {[%clk 0:02:59.9]} 12...
Rc8 {[%clk 0:02:47]} 13. c4 {[%clk 0:02:59]} 13... Re8 {[%clk 0:02:27.4]} 14.
Bf1 {[%clk 0:02:46.3]} 14... h6 {[%clk 0:02:24.7]} 15. h3 {[%clk 0:02:44.4]}
15... a6 {[%clk 0:02:22.1]} 16. Qb3 {[%clk 0:02:36]} 16... Ba7 {[%clk
0:02:01.4]} 17. Rad1 {[%clk 0:02:34.8]} 17... Qb6 {[%clk 0:01:58.4]} 18. Re3
{[%clk 0:02:28.8]} 18... Red8 {[%clk 0:01:54.4]} 19. c5 {[%clk 0:01:20.4]} 19...
Qc7 {[%clk 0:01:52.8]} 20. Rde1 {[%clk 0:01:13.3]} 20... Rb8 {[%clk 0:01:52]}
21. Qa4 {[%clk 0:01:11.3]} 21... b6 {[%clk 0:01:48]} 22. cxb6 {[%clk 0:01:07.9]}
22... Qxb6 {[%clk 0:01:37.4]} 23. Bxa6 {[%clk 0:01:04.6]} 23... Ra8 {[%clk
0:01:14.7]} 24. Bf1 {[%clk 0:01:00.8]} 24... Rdc8 {[%clk 0:01:08.4]} 25. Qd1
{[%clk 0:00:56.8]} 25... Bh7 {[%clk 0:00:53.9]} 26. Nb3 {[%clk 0:00:48.7]} 26...
Ne7 {[%clk 0:00:45.4]} 27. Bd4 {[%clk 0:00:46.4]} 27... Qb8 {[%clk 0:00:45.2]}
28. Bxa7 {[%clk 0:00:45.8]} 28... Qxa7 {[%clk 0:00:45.4]} 29. Na5 {[%clk
0:00:45.8]} 29... Nc6 {[%clk 0:00:41.6]} 30. Nxc6 {[%clk 0:00:43]} 30... Rxc6
{[%clk 0:00:42.5]} 31. Bb5 {[%clk 0:00:42.4]} 31... Rc7 {[%clk 0:00:42.2]} 32.
Qd4 {[%clk 0:00:37.5]} 32... Nb6 {[%clk 0:00:37]} 33. Ra1 {[%clk 0:00:26.7]}
33... Be4 {[%clk 0:00:19]} 34. Nd2 {[%clk 0:00:24.3]} 34... Bg6 {[%clk
0:00:19.1]} 35. a4 {[%clk 0:00:23.9]} 35... Nc8 {[%clk 0:00:17.3]} 36. Nf3
{[%clk 0:00:22.7]} 36... Qb8 {[%clk 0:00:17]} 37. Rae1 {[%clk 0:00:19.9]} 37...
Na7 {[%clk 0:00:17.4]} 38. Bf1 {[%clk 0:00:17]} 38... Nc6 {[%clk 0:00:17.9]} 39.
Qh4 {[%clk 0:00:14.9]} 39... Qxb4 {[%clk 0:00:17.7]} 40. Qg3 {[%clk 0:00:13]}
40... d4 {[%clk 0:00:17.1]} 41. R3e2 {[%clk 0:00:09.4]} 41... d3 {[%clk
0:00:17.4]} 42. Re3 {[%clk 0:00:09.2]} 42... Nd4 {[%clk 0:00:17.8]} 43. Nxd4
{[%clk 0:00:06.1]} 43... Qxd4 {[%clk 0:00:18.7]} 44. Rd1 {[%clk 0:00:05.7]}
44... d2 {[%clk 0:00:17.9]} 45. Qf3 {[%clk 0:00:04.1]} 45... Rd8 {[%clk
0:00:16.1]} 46. Bb5 {[%clk 0:00:01.6]} 46... Rc1 {[%clk 0:00:16]} 0-1

[Event "*** SCC Grand Prix: Titled Tuesday Blitz"]
[Site "Chess.com"]
[Date "2020.10.13"]
[Round "2"]
[White "ExtremeLearner"]
[Black "deribas12345"]
[Result "0-1"]
[WhiteElo "2411"]
[BlackElo "2694"]
[TimeControl "180+1"]
[EndTime "10:17:57 PDT"]
[Termination "deribas12345 won by checkmate"]

1. d4 {[%clk 0:03:00.9]} 1... Nf6 {[%clk 0:02:49.8]} 2. Nf3 {[%clk 0:02:58.5]}
2... c5 {[%clk 0:02:50.1]} 3. d5 {[%clk 0:02:52]} 3... b5 {[%clk 0:02:48.7]} 4.
a4 {[%clk 0:02:45.7]} 4... b4 {[%clk 0:02:48.2]} 5. Nbd2 {[%clk 0:02:42.7]} 5...
d6 {[%clk 0:02:46.6]} 6. Nc4 {[%clk 0:02:41.9]} 6... g6 {[%clk 0:02:44.6]} 7.
Bg5 {[%clk 0:02:24.5]} 7... Bg7 {[%clk 0:02:43.7]} 8. Bxf6 {[%clk 0:02:18.1]}
8... exf6 {[%clk 0:02:38.6]} 9. e3 {[%clk 0:02:05.5]} 9... f5 {[%clk 0:02:37.7]}
10. Be2 {[%clk 0:02:04.3]} 10... O-O {[%clk 0:02:37]} 11. O-O {[%clk 0:02:04.2]}
11... Qe7 {[%clk 0:02:34.8]} 12. Re1 {[%clk 0:02:00.8]} 12... Nd7 {[%clk
0:02:32.7]} 13. Bf1 {[%clk 0:01:46]} 13... Ba6 {[%clk 0:02:28.9]} 14. Rb1 {[%clk
0:01:40.8]} 14... Bxc4 {[%clk 0:02:27.6]} 15. Bxc4 {[%clk 0:01:40.4]} 15... Nb6
{[%clk 0:02:21.5]} 16. Bb5 {[%clk 0:01:35.8]} 16... Rab8 {[%clk 0:02:15.2]} 17.
Bc6 {[%clk 0:01:33.6]} 17... h6 {[%clk 0:02:00.8]} 18. Nd2 {[%clk 0:01:28.2]}
18... a5 {[%clk 0:01:58]} 19. Qe2 {[%clk 0:01:25.9]} 19... Qh4 {[%clk
0:01:50.7]} 20. g3 {[%clk 0:01:18.7]} 20... Qh3 {[%clk 0:01:50.4]} 21. Nc4
{[%clk 0:01:16.2]} 21... Nxc4 {[%clk 0:01:47.6]} 22. Qxc4 {[%clk 0:01:17.1]}
22... g5 {[%clk 0:01:44.8]} 23. Qf1 {[%clk 0:01:13.2]} 23... Qh5 {[%clk
0:01:41.4]} 24. Qe2 {[%clk 0:01:13.2]} 24... Qg6 {[%clk 0:01:40.1]} 25. Qf3
{[%clk 0:01:04.6]} 25... Rfd8 {[%clk 0:01:32.2]} 26. Qg2 {[%clk 0:00:59.4]}
26... Rbc8 {[%clk 0:01:30.6]} 27. Kh1 {[%clk 0:00:52.5]} 27... Rc7 {[%clk
0:01:30.4]} 28. Bb5 {[%clk 0:00:41.1]} 28... c4 {[%clk 0:01:26.2]} 29. Bc6
{[%clk 0:00:38]} 29... Re7 {[%clk 0:01:24.4]} 30. Qf1 {[%clk 0:00:36.2]} 30...
c3 {[%clk 0:01:22.8]} 31. bxc3 {[%clk 0:00:31.4]} 31... Bxc3 {[%clk 0:01:21.1]}
32. Red1 {[%clk 0:00:31.6]} 32... Qh5 {[%clk 0:01:21]} 33. Qg2 {[%clk
0:00:26.4]} 33... Kh8 {[%clk 0:01:20]} 34. Rd3 {[%clk 0:00:25.9]} 34... Qe2
{[%clk 0:01:15.5]} 35. Qh3 {[%clk 0:00:17.5]} 35... Kg7 {[%clk 0:01:11.5]} 36.
Qxf5 {[%clk 0:00:14.8]} 36... Re5 {[%clk 0:01:00.6]} 37. Qh3 {[%clk 0:00:10.3]}
37... Qxc2 {[%clk 0:01:00.4]} 38. Rdd1 {[%clk 0:00:07.5]} 38... b3 {[%clk
0:00:54.3]} 39. Qg2 {[%clk 0:00:06.8]} 39... b2 {[%clk 0:00:52]} 40. f4 {[%clk
0:00:05]} 40... Qxg2+ {[%clk 0:00:50.4]} 41. Kxg2 {[%clk 0:00:05.9]} 41... Rxe3
{[%clk 0:00:50.2]} 42. fxg5 {[%clk 0:00:05.2]} 42... hxg5 {[%clk 0:00:51]} 43.
Rf1 {[%clk 0:00:02.6]} 43... Re2+ {[%clk 0:00:48.6]} 44. Kf3 {[%clk 0:00:02.1]}
44... Rxh2 {[%clk 0:00:44.4]} 45. Kg4 {[%clk 0:00:03]} 45... Re2 {[%clk
0:00:35.4]} 46. Kxg5 {[%clk 0:00:03.1]} 46... Re4 {[%clk 0:00:31.8]} 47. g4
{[%clk 0:00:02.5]} 47... Rh8 {[%clk 0:00:24.4]} 48. Rf5 {[%clk 0:00:02.5]} 48...
Bd2+ {[%clk 0:00:23.4]} 49. Rf4 {[%clk 0:00:03.4]} 49... Re5# {[%clk 0:00:22.7]}
0-1

[Event "*** SCC Grand Prix: Titled Tuesday Blitz"]
[Site "Chess.com"]
[Date "2020.10.13"]
[Round "2"]
[White "wanyaland"]
[Black "SARGISMV"]
[Result "0-1"]
[WhiteElo "2279"]
[BlackElo "2497"]
[TimeControl "180+1"]
[EndTime "10:17:57 PDT"]
[Termination "SARGISMV won on time"]

1. d4 {[%clk 0:03:00.9]} 1... c5 {[%clk 0:02:41.3]} 2. d5 {[%clk 0:02:39.5]}
2... e6 {[%clk 0:02:20]} 3. c4 {[%clk 0:01:11.2]} 3... exd5 {[%clk 0:02:20.9]}
4. cxd5 {[%clk 0:01:11.2]} 4... d6 {[%clk 0:02:20.9]} 5. Nc3 {[%clk 0:01:12.1]}
5... a6 {[%clk 0:02:21]} 6. g3 {[%clk 0:01:13]} 6... Ne7 {[%clk 0:02:21.3]} 7.
a4 {[%clk 0:01:12.5]} 7... Ng6 {[%clk 0:02:21.2]} 8. Bg2 {[%clk 0:01:12.4]} 8...
Be7 {[%clk 0:02:20.9]} 9. Nf3 {[%clk 0:01:13.3]} 9... O-O {[%clk 0:02:21.1]} 10.
O-O {[%clk 0:01:13.3]} 10... Re8 {[%clk 0:02:19]} 11. e4 {[%clk 0:01:12.9]}
11... Bg4 {[%clk 0:02:17.5]} 12. h3 {[%clk 0:01:12.7]} 12... Bxf3 {[%clk
0:02:17.2]} 13. Bxf3 {[%clk 0:01:13]} 13... Nd7 {[%clk 0:02:17.6]} 14. Bg2
{[%clk 0:01:13.9]} 14... Bf6 {[%clk 0:02:17.4]} 15. Qb3 {[%clk 0:01:10.9]} 15...
Rb8 {[%clk 0:02:16.9]} 16. Kh2 {[%clk 0:01:09.1]} 16... Qc7 {[%clk 0:02:01.4]}
17. f4 {[%clk 0:01:07.8]} 17... c4 {[%clk 0:01:46.4]} 18. Qc2 {[%clk 0:01:06.3]}
18... b5 {[%clk 0:01:43.6]} 19. axb5 {[%clk 0:01:05.3]} 19... axb5 {[%clk
0:01:44.5]} 20. Be3 {[%clk 0:00:56.7]} 20... Nc5 {[%clk 0:01:40.2]} 21. Rfd1
{[%clk 0:00:38.9]} 21... b4 {[%clk 0:01:23.2]} 22. Na4 {[%clk 0:00:38]} 22...
Nb3 {[%clk 0:01:05]} 23. e5 {[%clk 0:00:34.4]} 23... Nxa1 {[%clk 0:00:57]} 24.
Qf5 {[%clk 0:00:25.1]} 24... dxe5 {[%clk 0:00:55]} 25. d6 {[%clk 0:00:25.3]}
25... Qa5 {[%clk 0:00:50.3]} 26. Rxa1 {[%clk 0:00:20.8]} 26... Red8 {[%clk
0:00:43.6]} 27. h4 {[%clk 0:00:19.3]} 27... Rxd6 {[%clk 0:00:39.4]} 28. h5
{[%clk 0:00:18.7]} 28... Ne7 {[%clk 0:00:39.4]} 29. Qe4 {[%clk 0:00:18.6]} 29...
exf4 {[%clk 0:00:33.7]} 30. Bxf4 {[%clk 0:00:18.8]} 30... Re6 {[%clk 0:00:34.2]}
31. Qxc4 {[%clk 0:00:16.8]} 31... Rc8 {[%clk 0:00:31.5]} 32. Qd3 {[%clk
0:00:13]} 32... Qxh5+ {[%clk 0:00:31.2]} 33. Bh3 {[%clk 0:00:13.2]} 33... Rec6
{[%clk 0:00:24.7]} 34. Rg1 {[%clk 0:00:08]} 34... Rc2+ {[%clk 0:00:24.1]} 35.
Rg2 {[%clk 0:00:08.5]} 35... Rxg2+ {[%clk 0:00:20.7]} 36. Kxg2 {[%clk
0:00:09.4]} 36... Rf8 {[%clk 0:00:20.1]} 37. Nb6 {[%clk 0:00:08.3]} 37... Ng6
{[%clk 0:00:19.6]} 38. Be3 {[%clk 0:00:07.1]} 38... Qe5 {[%clk 0:00:17.1]} 39.
Nd7 {[%clk 0:00:06.6]} 39... Qxb2+ {[%clk 0:00:17]} 40. Kf3 {[%clk 0:00:05.1]}
40... Rd8 {[%clk 0:00:17.4]} 41. Qe4 {[%clk 0:00:03.1]} 41... Rxd7 {[%clk
0:00:15.5]} 42. Bxd7 {[%clk 0:00:02.6]} 42... Nf8 {[%clk 0:00:15.6]} 43. Bf5
{[%clk 0:00:01.8]} 43... g6 {[%clk 0:00:14.9]} 44. Bh3 {[%clk 0:00:01.3]} 44...
b3 {[%clk 0:00:14.8]} 0-1

[Event "*** SCC Grand Prix: Titled Tuesday Blitz"]
[Site "Chess.com"]
[Date "2020.10.13"]
[Round "2"]
[White "northridgehawk"]
[Black "MPGM"]
[Result "0-1"]
[WhiteElo "2217"]
[BlackElo "2441"]
[TimeControl "180+1"]
[EndTime "10:17:57 PDT"]
[Termination "MPGM won by resignation"]

1. e4 {[%clk 0:03:00.9]} 1... e5 {[%clk 0:02:53.9]} 2. Bc4 {[%clk 0:02:59.7]}
2... Nf6 {[%clk 0:02:50.9]} 3. Nc3 {[%clk 0:02:59]} 3... Nc6 {[%clk 0:02:46.7]}
4. d3 {[%clk 0:02:59.1]} 4... Na5 {[%clk 0:02:45.5]} 5. Qf3 {[%clk 0:02:58.5]}
5... Be7 {[%clk 0:02:39.8]} 6. Nge2 {[%clk 0:02:57.1]} 6... O-O {[%clk
0:02:39.2]} 7. h3 {[%clk 0:02:57.3]} 7... c6 {[%clk 0:02:34.4]} 8. g4 {[%clk
0:02:50.4]} 8... b5 {[%clk 0:02:29.1]} 9. Bb3 {[%clk 0:02:50]} 9... Nxb3 {[%clk
0:02:27.8]} 10. axb3 {[%clk 0:02:50.9]} 10... d6 {[%clk 0:02:22.3]} 11. Ng3
{[%clk 0:02:50.6]} 11... Re8 {[%clk 0:02:13]} 12. g5 {[%clk 0:02:50.4]} 12...
Nd7 {[%clk 0:02:10.4]} 13. h4 {[%clk 0:02:50.6]} 13... Nf8 {[%clk 0:02:03.5]}
14. Rg1 {[%clk 0:02:44.7]} 14... Ne6 {[%clk 0:02:02.4]} 15. Nf5 {[%clk
0:02:43.6]} 15... Bf8 {[%clk 0:01:57.5]} 16. Be3 {[%clk 0:02:42.9]} 16... a5
{[%clk 0:01:55.5]} 17. h5 {[%clk 0:02:42.8]} 17... g6 {[%clk 0:01:46]} 18. hxg6
{[%clk 0:02:24.8]} 18... fxg6 {[%clk 0:01:46.9]} 19. Nh6+ {[%clk 0:02:21.5]}
19... Bxh6 {[%clk 0:01:42.8]} 20. gxh6 {[%clk 0:02:22.4]} 20... Rf8 {[%clk
0:01:41.5]} 21. Qg3 {[%clk 0:02:21.6]} 21... Qf6 {[%clk 0:01:16.4]} 22. Ne2
{[%clk 0:02:14.5]} 22... Bd7 {[%clk 0:01:00.1]} 23. O-O-O {[%clk 0:02:00.3]}
23... a4 {[%clk 0:00:52.2]} 24. bxa4 {[%clk 0:01:59.8]} 24... Rxa4 {[%clk
0:00:51.3]} 25. Nc3 {[%clk 0:01:59.4]} 25... Ra6 {[%clk 0:00:40.8]} 26. Nb1
{[%clk 0:01:45.2]} 26... d5 {[%clk 0:00:33.7]} 27. exd5 {[%clk 0:01:42.1]} 27...
cxd5 {[%clk 0:00:34.6]} 28. Bd2 {[%clk 0:01:41.4]} 28... Nd4 {[%clk 0:00:33.4]}
29. Rge1 {[%clk 0:01:39.4]} 29... Rc8 {[%clk 0:00:31.3]} 30. Bc3 {[%clk
0:01:37.9]} 30... Rac6 {[%clk 0:00:23.7]} 31. Qxe5 {[%clk 0:01:35.6]} 31... Qxe5
{[%clk 0:00:20.2]} 32. Rxe5 {[%clk 0:01:36.5]} 32... b4 {[%clk 0:00:18.5]} 33.
Rxd5 {[%clk 0:01:32.8]} 33... bxc3 {[%clk 0:00:18.4]} 34. Nxc3 {[%clk
0:01:30.2]} 34... Rxc3 {[%clk 0:00:15.8]} 35. bxc3 {[%clk 0:01:29.5]} 35... Ne2+
{[%clk 0:00:16]} 36. Kd2 {[%clk 0:01:28.9]} 36... Bg4 {[%clk 0:00:10.6]} 37. Re1
{[%clk 0:01:25.9]} 37... Nxc3 {[%clk 0:00:09.9]} 38. Rg5 {[%clk 0:01:23]} 38...
Bf5 {[%clk 0:00:09]} 39. Re7 {[%clk 0:01:17.9]} 39... Nd5 {[%clk 0:00:09]} 40.
Rg7+ {[%clk 0:01:16.2]} 40... Kh8 {[%clk 0:00:09.5]} 41. c4 {[%clk 0:01:15.7]}
41... Nf6 {[%clk 0:00:08.1]} 42. Rg3 {[%clk 0:01:10]} 42... Nh5 {[%clk
0:00:06.8]} 43. Re7 {[%clk 0:01:01.7]} 43... Nxg3 {[%clk 0:00:06.1]} 44. fxg3
{[%clk 0:01:02.6]} 44... Rd8 {[%clk 0:00:05]} 45. Re3 {[%clk 0:01:01.5]} 45...
Kg8 {[%clk 0:00:05.3]} 46. Kc3 {[%clk 0:01:00.6]} 46... Kf7 {[%clk 0:00:05.8]}
47. d4 {[%clk 0:01:00.7]} 47... g5 {[%clk 0:00:05.3]} 48. Re5 {[%clk 0:00:57.8]}
48... Kg6 {[%clk 0:00:05.3]} 49. d5 {[%clk 0:00:57.1]} 49... Bg4 {[%clk
0:00:04.6]} 50. Kd4 {[%clk 0:00:54.1]} 50... Kxh6 {[%clk 0:00:05.1]} 51. c5
{[%clk 0:00:54.6]} 51... Kg6 {[%clk 0:00:05.6]} 52. d6 {[%clk 0:00:54.6]} 52...
h5 {[%clk 0:00:05.5]} 53. Kd5 {[%clk 0:00:53.4]} 53... h4 {[%clk 0:00:05.3]} 54.
gxh4 {[%clk 0:00:52.6]} 54... gxh4 {[%clk 0:00:06.2]} 55. c6 {[%clk 0:00:51.9]}
55... h3 {[%clk 0:00:06.8]} 56. c7 {[%clk 0:00:51.6]} 56... Rh8 {[%clk
0:00:06.3]} 57. Re4 {[%clk 0:00:48.1]} 57... Bf3 {[%clk 0:00:06.3]} 58. d7
{[%clk 0:00:47.2]} 58... Bxe4+ {[%clk 0:00:06.7]} 59. Kxe4 {[%clk 0:00:48.1]}
59... h2 {[%clk 0:00:07.3]} 60. d8=Q {[%clk 0:00:43.7]} 60... h1=Q+ {[%clk
0:00:08.2]} 61. Ke5 {[%clk 0:00:42.5]} 61... Qe1+ {[%clk 0:00:07.6]} 62. Kd6
{[%clk 0:00:39.7]} 62... Qd2+ {[%clk 0:00:07.4]} 63. Kc6 {[%clk 0:00:39.4]}
63... Rxd8 {[%clk 0:00:06.8]} 64. Kb6 {[%clk 0:00:38.8]} 64... Qd6+ {[%clk
0:00:06.1]} 0-1

[Event "*** SCC Grand Prix: Titled Tuesday Blitz"]
[Site "Chess.com"]
[Date "2020.10.13"]
[Round "2"]
[White "MrChampion_Coach"]
[Black "Quiet_Desperation"]
[Result "1-0"]
[WhiteElo "2355"]
[BlackElo "1890"]
[TimeControl "180+1"]
[EndTime "10:17:57 PDT"]
[Termination "MrChampion_Coach won by resignation"]

1. d4 {[%clk 0:03:00.9]} 1... Nf6 {[%clk 0:02:59.3]} 2. c4 {[%clk 0:02:59.5]}
2... e6 {[%clk 0:02:59.6]} 3. f3 {[%clk 0:02:55.6]} 3... d5 {[%clk 0:02:57.2]}
4. Nc3 {[%clk 0:02:54.5]} 4... c5 {[%clk 0:02:56.8]} 5. cxd5 {[%clk 0:02:51.7]}
5... exd5 {[%clk 0:02:55.5]} 6. e3 {[%clk 0:02:46]} 6... Nc6 {[%clk 0:02:54.6]}
7. Bb5 {[%clk 0:02:45.5]} 7... cxd4 {[%clk 0:02:47.5]} 8. exd4 {[%clk
0:02:44.4]} 8... Bd6 {[%clk 0:02:47.5]} 9. Nge2 {[%clk 0:02:43.8]} 9... O-O
{[%clk 0:02:47.5]} 10. O-O {[%clk 0:02:38.6]} 10... Qc7 {[%clk 0:02:47.6]} 11.
g3 {[%clk 0:02:35.2]} 11... Bh3 {[%clk 0:02:47.5]} 12. Re1 {[%clk 0:02:35]}
12... Qb6 {[%clk 0:02:39.6]} 13. Bxc6 {[%clk 0:02:28]} 13... bxc6 {[%clk
0:02:30.7]} 14. Bf4 {[%clk 0:02:27.5]} 14... Bb4 {[%clk 0:02:24.6]} 15. Rc1
{[%clk 0:02:13.2]} 15... Rfe8 {[%clk 0:02:24]} 16. Kf2 {[%clk 0:02:12.7]} 16...
Bf5 {[%clk 0:02:12.1]} 17. a3 {[%clk 0:02:04.3]} 17... Bf8 {[%clk 0:02:06.7]}
18. Qd2 {[%clk 0:02:03.8]} 18... Qb3 {[%clk 0:01:50.8]} 19. Nd1 {[%clk
0:01:52.9]} 19... Rac8 {[%clk 0:01:42.8]} 20. Rc3 {[%clk 0:01:50.6]} 20... Qb5
{[%clk 0:01:40.6]} 21. Ne3 {[%clk 0:01:48.1]} 21... Bd7 {[%clk 0:01:37.4]} 22.
Rec1 {[%clk 0:01:25.1]} 22... Re6 {[%clk 0:01:29.4]} 23. g4 {[%clk 0:00:54.7]}
23... Rce8 {[%clk 0:01:22.2]} 24. Ng3 {[%clk 0:00:54.3]} 24... g6 {[%clk
0:01:08.7]} 25. g5 {[%clk 0:00:54.1]} 25... Nh5 {[%clk 0:01:03.3]} 26. Nxh5
{[%clk 0:00:53.2]} 26... gxh5 {[%clk 0:01:03.4]} 27. R1c2 {[%clk 0:00:37.7]}
27... a5 {[%clk 0:00:46.3]} 28. Nf1 {[%clk 0:00:34.4]} 28... c5 {[%clk
0:00:35.9]} 29. dxc5 {[%clk 0:00:28.8]} 29... Bxc5+ {[%clk 0:00:30.1]} 30. Rxc5
{[%clk 0:00:27.4]} 30... Re2+ {[%clk 0:00:29.9]} 31. Qxe2 {[%clk 0:00:27.3]}
31... Rxe2+ {[%clk 0:00:30]} 32. Kg3 {[%clk 0:00:26.5]} 32... Rxc2 {[%clk
0:00:29.6]} 33. Rxb5 {[%clk 0:00:26.2]} 33... Bxb5 {[%clk 0:00:30.5]} 34. Ne3
{[%clk 0:00:26.5]} 34... Rxb2 {[%clk 0:00:29.1]} 35. Nxd5 {[%clk 0:00:26.6]}
35... Rb3 {[%clk 0:00:29]} 36. Nf6+ {[%clk 0:00:26.6]} 36... Kf8 {[%clk
0:00:25.6]} 37. Bd6+ {[%clk 0:00:25.6]} 37... Kg7 {[%clk 0:00:25.9]} 38. Kh4
{[%clk 0:00:20.4]} 38... Rxf3 {[%clk 0:00:21.5]} 39. Kxh5 {[%clk 0:00:20.6]}
39... Rxf6 {[%clk 0:00:19.5]} 40. Be5 {[%clk 0:00:20]} 40... Bd3 {[%clk
0:00:18.2]} 41. gxf6+ {[%clk 0:00:17.4]} 41... Kf8 {[%clk 0:00:17.1]} 42. a4
{[%clk 0:00:15.7]} 42... Bc2 {[%clk 0:00:15.3]} 43. Bc7 {[%clk 0:00:13.4]} 43...
Bxa4 {[%clk 0:00:14.9]} 44. Kh6 {[%clk 0:00:12.4]} 44... Bc2 {[%clk 0:00:14.3]}
45. Bxa5 {[%clk 0:00:12.6]} 45... Ke8 {[%clk 0:00:14.5]} 46. Kg7 {[%clk
0:00:12.3]} 46... Bg6 {[%clk 0:00:14.2]} 47. h4 {[%clk 0:00:12.5]} 47... h5
{[%clk 0:00:13.4]} 48. Bb4 {[%clk 0:00:10.8]} 48... Kd7 {[%clk 0:00:13.4]} 49.
Kf8 {[%clk 0:00:10.5]} 49... Ke6 {[%clk 0:00:13.2]} 50. Bc3 {[%clk 0:00:10.5]}
50... Kf5 {[%clk 0:00:13.2]} 51. Ke7 {[%clk 0:00:10.6]} 51... Kg4 {[%clk
0:00:13.5]} 52. Be1 {[%clk 0:00:11.5]} 52... Kf5 {[%clk 0:00:13]} 1-0